fUSD/lending_fUSD_20250620
["ID","MTS","AMOUNT","RATE_DAILY","PERIOD"]
[366739435,1750426232999,-490.0,0.00025735,4]
[366739437,1750426233009,-490.0,0.00025735,4]
[366739439,1750426233019,-490.0,0.00025735,4]
[366739441,1750426233029,-490.0,0.00025735,4]
[366739443,1750426233039,-500.0,0.00025799,4]
[366739445,1750426233050,-151.0,0.000258,7]
[366739447,1750426233060,-288.247704,0.000258,7]
[366739449,1750426233070,-288.247704,0.000258,7]
[366739451,1750426233080,-563.38170359,0.00025866,14]
[366739453,1750426233090,-500.0,0.00025882,2]
[366739455,1750426233100,-1515.71688348,0.00025908,2]
[366739457,1750426233110,-556.87923795,0.00025909,8]
[366739459,1750426233120,-150.0,0.00025932,2]
[366739461,1750426233131,-170.15,0.00025935,11]
[366739463,1750426233141,-1270.055,0.00025935,11]
[366739465,1750426233151,-157.79,0.00025998,2]
[366739495,1750426233437,-475388.94432682,0.00025999,5]
[366739497,1750426233453,-3337.91951438,0.00025999,5]
[366739500,1750426233470,-40623.48852546,0.00025999,5]
[366739917,1750426237965,-172.75484435,0.00025634,2]
[366739918,1750426237976,-490.0,0.00025725,4]
[366739919,1750426237986,-176.97402243,0.00025998,2]
[366739920,1750426237996,-219.98866139,0.00025999,5]
[366739921,1750426238026,-362236.52730679,0.00025999,5]
[366739922,1750426238039,-1109.25673994,0.00025999,5]
[366739923,1750426238051,-2443.57586069,0.00025999,5]
[366739924,1750426238082,-2212.14033473,0.00025999,5]
[366739925,1750426238195,-53498.53688655,0.00025999,5]
[366739927,1750426238255,-2028.20149705,0.00025999,5]
[366739971,1750426240126,-500.0,0.00024444,2]
[366739972,1750426240137,-36437.36491569,0.00025999,5]
[366739973,1750426240366,-500.0,0.00025998,2]
[366739974,1750426240377,-263.8892603,0.00025998,2]
[366739975,1750426240424,-236.1107397,0.00025998,2]
[366739976,1750426240435,-500.0,0.00025998,2]
[366739977,1750426240445,-293.57586069,0.00025998,2]
[366739978,1750426240455,-433.51335868,0.00025998,2]
[366739979,1750426240471,-66.48664132,0.00025998,2]
[366739980,1750426240487,-195.36630869,0.00025998,2]
[366739981,1750426240500,-304.63369131,0.00025998,2]
[366739982,1750426240510,-500.0,0.00025998,2]
[366739983,1750426240520,-91.34963441,0.00025998,2]
[366739984,1750426240544,-408.65036559,0.00025998,2]
[366739985,1750426240554,-323.07628751,0.00025998,2]
[366739986,1750426240564,-500.0,0.00025998,2]
[366739987,1750426240576,-500.0,0.00025998,2]
[366739988,1750426240588,-300.0,0.00025998,2]
[366739989,1750426240598,-962.55292993,0.00025999,5]
[366739990,1750426244008,-500.0,0.00025998,2]
[366739991,1750426244019,-177.11840196,0.00025998,2]
[366739992,1750426244030,-381.59102098,0.00025998,2]
[366739993,1750426244040,-42595.27341228,0.00025999,5]
[366739994,1750426244051,-490.0,0.00025999,4]
[366739995,1750426244061,-490.0,0.00025999,2]
[366739996,1750426244071,-490.0,0.00025999,4]
[366739997,1750426244081,-490.0,0.00026008,4]
[366739998,1750426244091,-490.0,0.00026008,4]
[366739999,1750426244101,-490.0,0.00026008,4]
[366740000,1750426244111,-492.31898568,0.00026008,4]
[366740001,1750426244121,-490.0,0.00026008,4]
[366740002,1750426244131,-490.0,0.00026008,4]
[366740003,1750426244141,-490.0,0.00026008,4]
[366740004,1750426244151,-490.0,0.00026008,4]
[366740005,1750426244162,-490.0,0.00026008,4]
[366740006,1750426244171,-490.0,0.00026008,4]
[366740007,1750426244182,-698.46,0.00026008,4]
[366740008,1750426244192,-856.9,0.00026008,4]
[366740009,1750426244202,-500.0,0.00026008,4]
[366740010,1750426244213,-490.0,0.00026008,4]
[366740011,1750426244223,-490.0,0.00026008,4]
[366740012,1750426244233,-490.0,0.00026008,4]
[366740013,1750426244243,-490.0,0.00026008,4]
[366740014,1750426244254,-652.63,0.00026008,4]
[366740015,1750426244264,-490.0,0.00026008,4]
[366740016,1750426244274,-490.0,0.00026008,4]
[366740017,1750426244286,-490.0,0.00026008,4]
[366740018,1750426244296,-490.0,0.00026008,4]
[366740019,1750426244307,-1315.92,0.00026008,4]
[366740020,1750426244317,-490.0,0.00026008,4]
[366740021,1750426244327,-490.0,0.00026008,4]
[366740022,1750426244336,-490.0,0.00026008,4]
[366740023,1750426244346,-909.87,0.00026008,4]
[366740024,1750426244356,-473.81,0.00026008,4]
[366740025,1750426244365,-490.0,0.00026008,4]
[366740026,1750426244375,-490.0,0.00026008,4]
[366740027,1750426244385,-490.0,0.00026008,4]
[366740028,1750426244395,-490.0,0.00026008,4]
[366740029,1750426244404,-490.0,0.00026008,4]
[366740030,1750426244414,-490.0,0.00026008,4]
[366740031,1750426244424,-490.0,0.00026008,4]
[366740032,1750426244438,-490.0,0.00026008,4]
[366740033,1750426244448,-490.0,0.00026008,4]
[366740034,1750426244458,-547.42,0.00026008,4]
[366740035,1750426244468,-490.0,0.00026008,4]
[366740036,1750426244478,-783.38,0.00026008,4]
[366740037,1750426244488,-490.0,0.00026008,4]
[366740038,1750426244498,-490.0,0.00026008,4]
[366740039,1750426244509,-490.0,0.00026008,4]
[366740040,1750426244519,-1217.83,0.00026008,4]
[366740041,1750426244530,-490.0,0.00026008,4]
[366740042,1750426244540,-495.10787806,0.00026008,4]
[366740043,1750426244549,-490.0,0.00026008,4]
[366740044,1750426244560,-490.0,0.00026008,4]
[366740045,1750426244571,-490.0,0.00026008,4]
[366740046,1750426244581,-497.82,0.00026008,4]
[366740047,1750426244592,-528.04,0.00026008,4]
[366740048,1750426244602,-490.0,0.00026008,4]
[366740049,1750426244612,-490.0,0.00026008,4]
[366740050,1750426244624,-1025.41,0.00026008,4]
[366740051,1750426244635,-490.0,0.00026008,4]
[366740052,1750426244646,-490.0,0.00026008,4]
[366740053,1750426244656,-466.12300817,0.00026008,4]
[366740054,1750426244666,-768.94,0.00026008,4]
[366740055,1750426244676,-509.82,0.00026008,4]
[366740056,1750426244688,-490.0,0.00026008,4]
[366740057,1750426244698,-332.37257497,0.00026008,4]
[366740058,1750426244708,-423.11114781,0.00026008,4]
[366740059,1750426244718,-490.0,0.00026008,4]
[366740060,1750426244728,-490.0,0.00026008,4]
[366740061,1750426244738,-613.71,0.00026008,4]
[366740062,1750426244747,-492.87876848,0.00026008,4]
[366740063,1750426244757,-525.24203023,0.00026008,4]
[366740064,1750426244767,-490.0,0.00026008,4]
[366740065,1750426244777,-420.47452548,0.00026008,4]
[366740066,1750426244787,-492.56748913,0.00026008,4]
[366740067,1750426244796,-490.0,0.00026008,4]
[366740068,1750426244806,-3067.05,0.00026008,4]
[366740069,1750426244816,-490.0,0.00026008,4]
[366740070,1750426244826,-489.15933967,0.00026008,4]
[366740071,1750426244836,-492.95617681,0.00026008,4]
[366740072,1750426244846,-416.03,0.00026008,4]
[366740073,1750426244856,-494.71842522,0.00026008,4]
[366740074,1750426244866,-490.0,0.00026008,4]
[366740075,1750426244877,-363.44,0.00026008,4]
[366740076,1750426244886,-490.0,0.00026008,4]
[366740077,1750426244897,-490.0,0.00026008,4]
[366740078,1750426244907,-490.0,0.00026008,4]
[366740079,1750426244917,-490.0,0.00026008,4]
[366740080,1750426244927,-829.24,0.00026008,4]
[366740081,1750426244941,-825.62,0.00026008,4]
[366740082,1750426244951,-490.0,0.00026008,4]
[366740083,1750426244961,-675.24,0.00026008,4]
[366740084,1750426244972,-492.77010077,0.00026008,4]
[366740085,1750426244982,-404.86559982,0.00026008,4]
[366740086,1750426244993,-1237.47,0.00026008,4]
[366740087,1750426245003,-1898.1,0.00026008,4]
[366740088,1750426245012,-490.0,0.00026008,4]
[366740089,1750426245022,-490.0,0.00026008,4]
[366740090,1750426245335,-490.0,0.00026008,4]
[366740091,1750426245347,-490.0,0.00026008,4]
[366740092,1750426245357,-490.0,0.00026008,4]
[366740093,1750426245366,-507.04725455,0.00026008,4]
[366740094,1750426245376,-490.0,0.00026008,4]
[366740095,1750426245386,-1530.46,0.00026008,4]
[366740096,1750426245396,-490.0,0.00026008,4]
[366740097,1750426245406,-658.35,0.00026008,4]
[366740098,1750426245416,-490.0,0.00026008,4]
[366740099,1750426245426,-490.0,0.00026008,4]
[366740100,1750426245439,-490.0,0.00026008,4]
[366740101,1750426245450,-490.0,0.00026008,4]
[366740102,1750426245460,-971.99,0.00026008,4]
[366740103,1750426245471,-490.0,0.00026008,4]
[366740104,1750426245480,-490.0,0.00026008,4]
[366740105,1750426245490,-490.0,0.00026008,4]
[366740106,1750426245500,-490.0,0.00026008,4]
[366740107,1750426245511,-664.11,0.00026008,4]
[366740108,1750426245521,-490.0,0.00026008,4]
[366740109,1750426245531,-177.28185316,0.00026008,4]
[366740113,1750426246126,-312.71814684,0.00026008,4]
[366740114,1750426246136,-733.46,0.00026008,4]
[366740115,1750426246146,-490.0,0.00026008,4]
[366740116,1750426246156,-490.0,0.00026008,4]
[366740117,1750426246165,-490.0,0.00026008,4]
[366740118,1750426246175,-536.11,0.00026008,4]
[366740119,1750426246187,-490.0,0.00026008,4]
[366740120,1750426246197,-490.0,0.00026008,4]
[366740121,1750426246206,-513.38,0.00026008,4]
[366740122,1750426246217,-553.38,0.00026008,4]
[366740123,1750426246226,-490.0,0.00026008,4]
[366740124,1750426246236,-490.0,0.00026008,4]
[366740125,1750426246245,-490.0,0.00026008,4]
[366740127,1750426246255,-490.0,0.00026008,4]
[366740129,1750426246265,-6224.36,0.00026008,4]
[366740131,1750426246274,-490.0,0.00026008,4]
[366740132,1750426246284,-301.78,0.00026008,4]
[366740133,1750426246294,-490.0,0.00026008,4]
[366740134,1750426246303,-944.12,0.00026008,4]
[366740135,1750426246312,-490.0,0.00026008,4]
[366740136,1750426246322,-229.79,0.00026008,4]
[366740137,1750426246331,-490.0,0.00026008,4]
[366740138,1750426246341,-1000.0,0.00026008,2]
[366740139,1750426246351,-310.11,0.00026008,4]
[366740140,1750426246360,-490.0,0.00026008,4]
[366740141,1750426246370,-490.0,0.00026008,4]
[366740142,1750426246379,-490.0,0.00026008,4]
[366740143,1750426246389,-490.0,0.00026008,4]
[366740144,1750426246399,-490.0,0.00026008,4]
[366740145,1750426246408,-490.0,0.00026008,4]
[366740147,1750426246418,-490.0,0.00026008,4]
[366740149,1750426246428,-490.0,0.00026008,4]
[366740151,1750426246440,-490.0,0.00026008,4]
[366740153,1750426246450,-1941.74,0.00026008,4]
[366740154,1750426246460,-829.62,0.00026008,4]
[366740155,1750426246470,-490.0,0.00026008,4]
[366740156,1750426246480,-940.48,0.00026008,4]
[366740157,1750426246490,-490.0,0.00026008,4]
[366740158,1750426246500,-490.0,0.00026008,4]
[366740159,1750426246509,-493.94294798,0.00026008,4]
[366740160,1750426246520,-490.0,0.00026008,4]
[366740161,1750426246529,-490.0,0.00026008,4]
[366740162,1750426246541,-566.08,0.00026008,4]
[366740163,1750426246550,-490.0,0.00026008,4]
[366740165,1750426246560,-503.82,0.00026008,4]
[366740167,1750426246570,-490.0,0.00026008,4]
[366740169,1750426246579,-490.0,0.00026008,4]
[366740171,1750426246589,-490.0,0.00026008,4]
[366740174,1750426246598,-395.73,0.00026008,4]
[366740176,1750426246608,-490.0,0.00026008,4]
[366740178,1750426246618,-828.21,0.00026008,4]
[366740179,1750426246627,-490.0,0.00026008,4]
[366740182,1750426246637,-2475.48,0.00026008,4]
[366740183,1750426246647,-490.0,0.00026008,4]
[366740186,1750426246656,-490.0,0.00026008,4]
[366740188,1750426246666,-2535.03,0.00026008,4]
[366740190,1750426246676,-490.0,0.00026008,4]
[366740192,1750426246687,-710.91,0.00026008,4]
[366740194,1750426246697,-1216.22,0.00026008,4]
[366740196,1750426246706,-490.0,0.00026008,4]
[366740198,1750426246716,-490.0,0.00026008,4]
[366740200,1750426246726,-490.0,0.00026008,4]
[366740201,1750426246735,-490.0,0.00026008,4]
[366740203,1750426246745,-13945.19,0.00026008,4]
[366740205,1750426246755,-490.0,0.00026008,4]
[366740208,1750426246765,-581.52,0.00026008,4]
[366740210,1750426246774,-490.0,0.00026008,4]
[366740212,1750426246783,-506.56,0.00026008,4]
[366740213,1750426246793,-151.0,0.00026009,7]
[366740216,1750426246803,-151.0,0.00026009,7]
[366740218,1750426246812,-151.0,0.00026009,7]
[366740220,1750426246822,-151.0,0.00026009,7]
[366740221,1750426246832,-288.247704,0.00026009,7]
[366740223,1750426246841,-288.247704,0.00026009,7]
[366740226,1750426246851,-490.0,0.00026009,4]
[366740228,1750426246860,-490.0,0.00026009,4]
[366740229,1750426246870,-490.0,0.00026009,4]
[366740232,1750426246880,-490.0,0.00026009,4]
[366740233,1750426246890,-490.0,0.00026009,4]
[366740236,1750426246899,-726.07,0.00026009,4]
[366740238,1750426246909,-490.0,0.00026009,4]
[366740240,1750426246919,-490.0,0.00026009,4]
[366740242,1750426246928,-500.0,0.00026009,4]
[366740244,1750426246940,-643.1,0.00026009,4]
[366740246,1750426246950,-490.0,0.00026009,4]
[366740248,1750426246960,-490.0,0.00026009,4]
[366740250,1750426246970,-578.44,0.00026009,4]
[366740252,1750426246981,-490.0,0.00026009,4]
[366740254,1750426246990,-424.88,0.00026009,4]
[366740256,1750426247000,-490.0,0.00026009,4]
[366740258,1750426247011,-490.0,0.00026009,4]
[366740260,1750426247021,-1489.19,0.00026009,4]
[366740262,1750426247032,-490.0,0.00026009,4]
[366740264,1750426247042,-490.0,0.00026009,4]
[366740266,1750426247051,-490.0,0.00026009,4]
[366740268,1750426247061,-738.24,0.00026009,4]
[366740270,1750426247070,-490.0,0.00026009,4]
[366740272,1750426247079,-573.25,0.00026009,4]
[366740274,1750426247090,-705.7,0.00026009,4]
[366740276,1750426247099,-490.0,0.00026009,4]
[366740278,1750426247109,-705.99,0.00026009,4]
[366740280,1750426247118,-592.67,0.00026009,4]
[366740282,1750426247129,-518.82,0.00026009,4]
[366740284,1750426247139,-490.0,0.00026009,4]
[366740286,1750426247149,-490.0,0.00026009,4]
[366740288,1750426247158,-490.0,0.00026009,4]
[366740290,1750426247168,-151.0,0.0002601,7]
[366740292,1750426247178,-151.0,0.0002601,7]
[366740294,1750426247188,-151.0,0.0002601,7]
[366740296,1750426247198,-151.0,0.0002601,7]
[366740298,1750426247207,-151.0,0.0002601,7]
[366740300,1750426247217,-151.0,0.0002601,7]
[366740302,1750426247226,-288.247704,0.0002601,7]
[366740304,1750426247236,-288.247704,0.0002601,7]
[366740306,1750426247245,-288.247704,0.0002601,7]
[366740308,1750426247255,-288.247704,0.0002601,7]
[366740310,1750426247264,-500.0,0.00026027,2]
[366740312,1750426247274,-500.0,0.00026027,2]
[366740314,1750426247283,-500.0,0.00026027,2]
[366740316,1750426247292,-500.0,0.00026027,2]
[366740318,1750426247302,-519.58563659,0.00026027,2]
[366740320,1750426247311,-500.0,0.00026027,2]
[366740321,1750426247321,-5285.65338656,0.000261,30]
[366740322,1750426247330,-3771.594,0.00026181,2]
[366740323,1750426247340,-1413.00892654,0.00026182,2]
[366740324,1750426247350,-490.0,0.00026273,4]
[366740325,1750426247359,-490.0,0.00026273,2]
[366740326,1750426247369,-490.0,0.00026273,4]
[366740327,1750426247379,-3729.0,0.00026276,7]
[366740328,1750426247389,-491.44604965,0.0002628,4]
[366740329,1750426247399,-490.0,0.0002628,4]
[366740330,1750426247409,-490.0,0.0002628,4]
[366740331,1750426247418,-490.0,0.0002628,4]
[366740332,1750426247428,-493.23828133,0.0002628,4]
[366740333,1750426247438,-490.0,0.0002628,4]
[366740334,1750426247447,-490.0,0.0002628,4]
[366740335,1750426247457,-512.91,0.0002628,4]
[366740336,1750426247466,-490.0,0.0002628,4]
[366740337,1750426247477,-490.0,0.0002628,4]
[366740338,1750426247488,-490.0,0.0002628,4]
[366740339,1750426247497,-490.0,0.0002628,4]
[366740340,1750426247507,-517.06,0.0002628,4]
[366740341,1750426247517,-824.3,0.0002628,4]
[366740342,1750426247527,-490.0,0.0002628,4]
[366740343,1750426247537,-952.59,0.0002628,4]
[366740344,1750426247548,-490.0,0.0002628,4]
[366740345,1750426247558,-490.0,0.0002628,4]
[366740346,1750426247568,-490.0,0.0002628,4]
[366740347,1750426247578,-490.0,0.0002628,4]
[366740348,1750426247588,-490.0,0.0002628,4]
[366740349,1750426247597,-490.0,0.0002628,4]
[366740350,1750426247607,-490.0,0.0002628,4]
[366740351,1750426247616,-490.0,0.0002628,4]
[366740352,1750426247625,-490.0,0.00026281,4]
[366740353,1750426247635,-490.0,0.00026281,4]
[366740354,1750426247644,-490.0,0.00026281,4]
[366740355,1750426247654,-490.0,0.00026281,4]
[366740356,1750426247664,-490.0,0.00026281,4]
[366740357,1750426247673,-490.0,0.00026281,4]
[366740358,1750426247684,-490.0,0.00026281,4]
[366740359,1750426247694,-602.73,0.00026281,4]
[366740360,1750426247703,-490.0,0.00026281,4]
[366740361,1750426247712,-490.0,0.00026281,4]
[366740362,1750426247721,-490.0,0.00026281,4]
[366740363,1750426247731,-259.51920987,0.00026281,4]
[366740364,1750426247740,-490.0,0.00026281,4]
[366740365,1750426247750,-490.0,0.00026281,4]
[366740366,1750426247759,-662.09,0.00026281,4]
[366740367,1750426247769,-490.0,0.00026281,4]
[366740368,1750426247778,-490.0,0.00026281,4]
[366740369,1750426247788,-490.0,0.00026281,4]
[366740370,1750426247798,-490.0,0.00026281,4]
[366740371,1750426247807,-490.0,0.00026281,4]
[366740372,1750426247817,-490.0,0.00026281,4]
[366740373,1750426247827,-490.0,0.00026281,4]
[366740374,1750426247837,-490.0,0.00026281,4]
[366740375,1750426247846,-490.0,0.00026281,4]
[366740376,1750426247856,-490.0,0.00026281,4]
[366740377,1750426247866,-490.0,0.00026281,4]
[366740378,1750426247876,-490.0,0.00026281,4]
[366740379,1750426247886,-490.0,0.00026281,4]
[366740380,1750426247895,-490.0,0.00026281,4]
[366740381,1750426247905,-449.12047942,0.00026281,4]
[366740382,1750426247915,-490.0,0.00026281,4]
[366740383,1750426247924,-506.65,0.00026281,4]
[366740384,1750426247934,-490.0,0.00026281,4]
[366740385,1750426247944,-490.0,0.00026281,4]
[366740386,1750426247953,-490.0,0.00026281,4]
[366740387,1750426247963,-507.09,0.00026281,4]
[366740388,1750426247973,-494.55262997,0.00026281,4]
[366740389,1750426247983,-593.84,0.00026281,4]
[366740390,1750426247993,-536.59,0.00026281,4]
[366740391,1750426248003,-490.0,0.00026281,4]
[366740392,1750426248012,-490.0,0.00026281,4]
[366740393,1750426248021,-620.37,0.00026281,4]
[366740394,1750426248031,-490.0,0.00026281,4]
[366740395,1750426248040,-490.0,0.00026281,4]
[366740396,1750426248049,-490.0,0.00026281,4]
[366740397,1750426248058,-490.0,0.00026281,4]
[366740398,1750426248068,-514.66,0.00026281,4]
[366740399,1750426248077,-497.15,0.00026281,4]
[366740400,1750426248087,-490.0,0.00026281,4]
[366740401,1750426248097,-490.0,0.00026281,4]
[366740402,1750426248106,-490.0,0.00026281,4]
[366740403,1750426248116,-490.0,0.00026281,4]
[366740404,1750426248126,-490.0,0.00026281,4]
[366740405,1750426248135,-490.0,0.00026281,4]
[366740406,1750426248145,-490.0,0.00026281,4]
[366740407,1750426248155,-490.0,0.00026281,4]
[366740408,1750426248164,-490.0,0.00026281,4]
[366740409,1750426248174,-490.0,0.00026281,4]
[366740410,1750426248185,-490.0,0.00026281,4]
[366740411,1750426248194,-578.17,0.00026281,4]
[366740412,1750426248204,-490.0,0.00026281,4]
[366740413,1750426248214,-490.0,0.00026281,4]
[366740414,1750426248223,-490.0,0.00026281,4]
[366740415,1750426248233,-490.0,0.00026281,4]
[366740416,1750426248243,-490.0,0.00026281,4]
[366740417,1750426248252,-490.0,0.00026281,4]
[366740418,1750426248262,-490.0,0.00026281,4]
[366740419,1750426248271,-490.0,0.00026281,4]
[366740420,1750426248280,-490.0,0.00026281,4]
[366740421,1750426248289,-490.0,0.00026281,4]
[366740422,1750426248298,-490.0,0.00026281,4]
[366740423,1750426248307,-1802.76,0.00026281,4]
[366740424,1750426248317,-490.0,0.00026281,4]
[366740425,1750426248326,-490.0,0.00026281,4]
[366740426,1750426248336,-490.0,0.00026281,4]
[366740427,1750426248346,-490.0,0.00026281,4]
[366740428,1750426248355,-490.0,0.00026281,4]
[366740429,1750426248365,-2019.65,0.00026281,4]
[366740430,1750426248375,-559.63,0.00026281,4]
[366740431,1750426248385,-490.0,0.00026281,4]
[366740432,1750426248395,-541.87,0.00026281,4]
[366740433,1750426248404,-490.0,0.00026281,4]
[366740434,1750426248414,-312.02,0.00026281,4]
[366740435,1750426248423,-490.0,0.00026281,4]
[366740436,1750426248433,-2387.66,0.00026281,4]
[366740437,1750426248443,-490.0,0.00026281,4]
[366740438,1750426248453,-490.0,0.00026281,4]
[366740439,1750426248463,-490.0,0.00026281,4]
[366740440,1750426248473,-490.0,0.00026281,4]
[366740441,1750426248483,-490.0,0.00026281,4]
[366740442,1750426248492,-490.0,0.00026281,4]
[366740443,1750426248501,-490.0,0.00026281,4]
[366740444,1750426248510,-490.0,0.00026281,4]
[366740445,1750426248519,-336.56765229,0.00026281,4]
[366740446,1750426248528,-490.0,0.00026281,4]
[366740447,1750426248539,-490.0,0.00026281,4]
[366740448,1750426248552,-490.0,0.00026281,4]
[366740449,1750426248562,-490.0,0.00026281,4]
[366740450,1750426248571,-490.0,0.00026281,4]
[366740451,1750426248581,-490.0,0.00026281,4]
[366740452,1750426248590,-491.62969271,0.00026281,4]
[366740453,1750426248600,-509.41063377,0.00026281,4]
[366740454,1750426248610,-490.0,0.00026281,4]
[366740455,1750426248621,-490.0,0.00026281,4]
[366740456,1750426248631,-490.0,0.00026281,4]
[366740457,1750426248641,-490.0,0.00026281,4]
[366740458,1750426248651,-561.72,0.00026281,4]
[366740459,1750426248661,-490.0,0.00026281,4]
[366740460,1750426248671,-490.0,0.00026281,4]
[366740461,1750426248680,-490.0,0.00026281,4]
[366740462,1750426248691,-490.0,0.00026281,4]
[366740463,1750426248701,-490.0,0.00026281,4]
[366740464,1750426248711,-490.0,0.00026281,4]
[366740465,1750426248721,-522.66892696,0.00026282,4]
[366740466,1750426248730,-183.9,0.00026282,4]
[366740467,1750426248740,-490.0,0.00026282,4]
[366740468,1750426248751,-490.0,0.00026282,4]
[366740469,1750426248761,-698.46,0.00026282,4]
[366740470,1750426248770,-856.9,0.00026282,4]
[366740471,1750426248780,-490.0,0.00026282,4]
[366740472,1750426248790,-490.0,0.00026282,4]
[366740473,1750426248799,-490.0,0.00026282,4]
[366740474,1750426248809,-490.0,0.00026282,4]
[366740475,1750426248819,-490.0,0.00026282,4]
[366740476,1750426248829,-652.63,0.00026282,4]
[366740477,1750426248838,-490.0,0.00026282,4]
[366740478,1750426248849,-490.0,0.00026282,4]
[366740479,1750426248858,-490.0,0.00026282,4]
[366740480,1750426248869,-1315.92,0.00026282,4]
[366740481,1750426248879,-490.0,0.00026282,4]
[366740482,1750426248889,-490.0,0.00026282,4]
[366740483,1750426248898,-490.0,0.00026282,4]
[366740484,1750426248908,-909.87,0.00026282,4]
[366740485,1750426248918,-490.0,0.00026282,4]
[366740486,1750426248928,-490.0,0.00026282,4]
[366740487,1750426248940,-490.0,0.00026282,4]
[366740488,1750426248950,-490.0,0.00026282,4]
[366740489,1750426248960,-490.0,0.00026282,4]
[366740490,1750426248970,-258.39,0.00026282,4]
[366740491,1750426248979,-490.0,0.00026282,4]
[366740492,1750426248989,-783.38,0.00026282,4]
[366740493,1750426249000,-490.0,0.00026282,4]
[366740494,1750426249009,-490.0,0.00026282,4]
[366740495,1750426249019,-490.0,0.00026282,4]
[366740496,1750426249029,-1217.83,0.00026282,4]
[366740497,1750426249039,-165.81,0.00026282,4]
[366740498,1750426249049,-438.08,0.00026282,4]
[366740499,1750426249058,-490.0,0.00026282,4]
[366740500,1750426249068,-490.0,0.00026282,4]
[366740501,1750426249077,-528.04,0.00026282,4]
[366740502,1750426249087,-490.0,0.00026282,4]
[366740503,1750426249097,-490.0,0.00026282,4]
[366740504,1750426249106,-1025.41,0.00026282,4]
[366740505,1750426249116,-490.0,0.00026282,4]
[366740506,1750426249126,-362.75,0.00026282,4]
[366740507,1750426249136,-768.94,0.00026282,4]
[366740508,1750426249145,-509.82,0.00026282,4]
[366740509,1750426249155,-490.0,0.00026282,4]
[366740510,1750426249165,-490.0,0.00026282,4]
[366740511,1750426249174,-490.0,0.00026282,4]
[366740512,1750426249184,-3067.05,0.00026282,4]
[366740513,1750426249195,-490.0,0.00026282,4]
[366740514,1750426249205,-490.0,0.00026282,4]
[366740515,1750426249214,-490.0,0.00026282,4]
[366740516,1750426249224,-490.0,0.00026282,4]
[366740517,1750426249234,-490.0,0.00026282,4]
[366740518,1750426249243,-490.0,0.00026282,4]
[366740519,1750426249253,-829.24,0.00026282,4]
[366740520,1750426249262,-825.62,0.00026282,4]
[366740521,1750426249272,-490.0,0.00026282,4]
[366740522,1750426249282,-675.24,0.00026282,4]
[366740523,1750426249292,-1237.47,0.00026282,4]
[366740524,1750426249302,-1898.1,0.00026282,4]
[366740525,1750426249587,-490.0,0.00026282,4]
[366740526,1750426249598,-490.0,0.00026282,4]
[366740527,1750426249608,-490.0,0.00026282,4]
[366740528,1750426249618,-490.0,0.00026282,4]
[366740529,1750426249628,-490.0,0.00026282,4]
[366740530,1750426249638,-1530.46,0.00026282,4]